Workbook

Sheet Производственная программа
B1: ПРОИЗВОДСТВЕННАЯ ПРОГРАММА 2022-2028
AM2: - Начало СМР
L3: ● | M3: - Внутреннее согласование архитектурно-градостроительной концепции застройки в АБД проведено; | X3: ▪ | Y3: - разрешения на строительство получено; | AM3: - СМР
L4: ● | M4: -В УАиГ получено согласование архитектурной концепции с эскизом застройки ; | X4: ▪ | Y4: - старт продаж | AM4: - Производство панелей
L5: ● | M5: - Эскизный проект (1 этап) согласован; | X5: ▪ | Y5: - получен ЗОС; | AM5: - Ввод объекта в эксплуатацию
L6: ● | M6: - Утверждение отклонений от предельных параметров разрешенного строительства; | X6: ▪ | Y6: - зарегистрирована превая квартира на покупателя/раскрыты эскроу счета; | AL6: ДДУ | AM6: - Передача ключей по ДДУ
B7: ПРОИЗВОДСТВЕННАЯ ПРОГРАММА 2023 Слаботочные системы
A8: № п/п | B8: № п/п | C8: Код по 1C | D8: Наименование объектов | E8: Общая площадь здания, м2 | F8: Срок СМР (мес.) | G8: Проектировщик | I8: Ген. Подрядчик | J8: Срок РНС до | K8: Передача ключей по ДДУ (обяз-ва) | L8: 2021 | X8: КПД 2021 | Y8: ВВОД 2021 | Z8: ЗАДЕЛ 2021 | AA8: Проектирование 2021 | AB8: Наличие проекта | AC8: Общий объем по проекту | AD8: Ед.изм. | AE8: 2023 | AQ8: 2024
F9: РНС - Ввод | G9: АГК-ЭП | H9: ЭП-Эксперт | L9: янв | M9: фев | N9: мар | O9: апр | P9: май | Q9: июн | R9: июл | S9: авг | T9: сен | U9: окт | V9: ноя | W9: дек | X9: м3 | Y9: м2 | Z9: м2 | AA9: м2 | AE9: янв | AF9: фев | AG9: мар | AH9: апр | AI9: май | AJ9: июн | AK9: июл | AL9: авг | AM9: сен | AN9: окт | AO9: ноя | AP9: дек | AQ9: янв | AR9: фев | AS9: мар | AT9: апр | AU9: май | AV9: июн | AW9: июл | AX9: авг | AY9: сен | AZ9: окт | BA9: ноя | BB9: дек
A10: 1 | B10: 1 | C10: 2 | D10: 2 | F10: 112 | I10: 33 | J10: 34 | K10: 35 | L10: 36 | M10: 37 | N10: 38 | O10: 39 | P10: 40 | Q10: 41 | R10: 42 | S10: 43 | T10: 44 | U10: 45 | V10: 46 | W10: 47 | X10: 48 | Y10: 49 | Z10: 50 | AA10: 51 | AE10: 68 | AF10: 69 | AG10: 70 | AH10: 71 | AI10: 72 | AJ10: 73 | AK10: 74 | AL10: 75 | AM10: 76 | AN10: 77 | AO10: 78 | AP10: 79 | AQ10: 68 | AR10: 69 | AS10: 70 | AT10: 71 | AU10: 72 | AV10: 73 | AW10: 74 | AX10: 75 | AY10: 76 | AZ10: 77 | BA10: 78 | BB10: 79
A11: 10 | B11: 1.3 | C11: СГ00.09.0.00.0 | D11: Жилой комплекс "Солнечный город" ПК-9 | E11: =E12 -> 0 | L11: =SUM(L12:L12) -> 0 | M11: 0 | N11: 0 | O11: 0 | P11: 0 | Q11: 0 | R11: 0 | S11: 0 | T11: 0 | U11: 0 | V11: 0 | W11: 0 | X11: 0 | Y11: 0 | Z11: 0 | AA11: 0 | AE11: =SUM(AE12:AE12) -> 0 | AF11: 0 | AG11: 0 | AH11: 0 | AI11: 0 | AJ11: 0 | AK11: 0 | AL11: 0 | AM11: 0 | AN11: 0 | AO11: 0 | AP11: 0 | AQ11: 0 | AR11: 0 | AS11: 0 | AT11: 0 | AU11: 0 | AV11: 0 | AW11: 0 | AX11: 0 | AY11: 0 | AZ11: 0 | BA11: 0 | BB11: 0
A12: 11 | B12: 1.3.1 | C12: СГ00.09.2.00.0 | D12: Жилой комплекс "Солнечный город" ПК-9 Адм здание 17-3 | F12: =(#REF!-#REF!)/30 ->  | X12: =SUM(L12:W12) -> 0
A13: 12 | C13: СД00.00.0.00.0 | D13: ЖК "Светлая долина" | E13: =SUM(,#REF!,#REF!,E14,#REF!,E35) -> 
A14: 30 | C14: СД00.03.0.00.0 | D14: ЖК "Светлая Долина" ПК-3 | E14: =SUM(E15:E30) -> 65,472 | K14: =MAX(K15:K30) -> 2025-06-30 | L14: =SUM(L15,L20,L25,L30) -> 0 | M14: 0 | N14: 0 | O14: 0 | P14: 0 | Q14: 0 | R14: 0 | S14: 0 | T14: 0 | U14: 0 | V14: 0 | W14: 0 | X14: 0 | AE14: =SUM(AE15,AE20,AE25,AE30) -> 0 | AF14: 0 | AG14: 0 | AH14: 0 | AI14: 0 | AJ14: 0 | AK14: 0 | AL14: 0 | AM14: 0 | AN14: 0 | AO14: 0 | AP14: 0 | AQ14: 0 | AR14: 0 | AS14: 0 | AT14: 0 | AU14: 0 | AV14: 0 | AW14: 0 | AX14: 0 | AY14: 0 | AZ14: 0 | BA14: 0 | BB14: 0
A15: 31 | C15: СД00.03.1.03.1 | D15: ЖК "Светлая Долина" ПК-3 ж/д 3-1 | E15: 30,509 | F15: =(#REF!-#REF!)/30 ->  | G15: АБ-1 | H15: АБ-1 | I15: Не определен | K15: 2025-06-30 | O15: ● | R15: ● | V15: ● | X15: =SUM(L15:W15) -> 0 | Y15: =IF(YEAR(#REF!)=L$8,#REF!,0) ->  | Z15: =IF(AND(YEAR(#REF!)<=L$8,YEAR(#REF!)>L$8),#REF!,0) ->  | AA15: =#REF! ->  | AB15: нет проекта, вообще
D16: Кабельная продукция | AC16: 112 | AD16: км
D17: Кабеленесущие системы (лотки, трубы) | AC17: 15600 | AD17: м
D18: Оборудование (шкафы, щиты) | AC18: 792 | AD18: компл
D19: Установочные изделия (светильники, выключатели, розетки) | AC19: 12000 | AD19: шт
A20: 32 | C20: СД00.03.1.03.2 | D20: ЖК "Светлая Долина" ПК-3 ж/д 3-2 | E20: 7,460 | F20: =(#REF!-#REF!)/30 ->  | G20: АБ-1 | H20: АБ-1 | I20: АБСт | K20: 2025-06-30 | O20: ● | R20: ● | V20: ● | X20: =SUM(L20:W20) -> 0 | Y20: =IF(YEAR(#REF!)=L$8,#REF!,0) ->  | Z20: =IF(AND(YEAR(#REF!)<=L$8,YEAR(#REF!)>L$8),#REF!,0) ->  | AA20: =#REF! ->  | AB20: Есть без спец. 10эт | AC20: Приблизительный объем
D21: Кабельная продукция | AC21: 22 | AD21: км
D22: Кабеленесущие системы (лотки, трубы) | AC22: 15000 | AD22: м
D23: Оборудование (шкафы, щиты) | AC23: =11*9+2*9+16 -> 133 | AD23: компл
D24: Установочные изделия (светильники, выключатели, розетки) | AC24: =80*4*9+100 -> 2980 | AD24: шт
A25: 34 | C25: СД00.03.1.03.3 | D25: ЖК "Светлая Долина" ПК-3 ж/д 3-3 | E25: 17,140 | F25: =(#REF!-#REF!)/30 ->  | G25: АБ-1 | H25: АБ-1 | I25: АБСт | K25: 2025-06-30 | O25: ● | R25: ● | V25: ● | X25: =SUM(L25:W25) -> 0 | Y25: =IF(YEAR(#REF!)=L$8,#REF!,0) ->  | Z25: =IF(AND(YEAR(#REF!)<=L$8,YEAR(#REF!)>L$8),#REF!,0) ->  | AA25: =#REF! ->  | AB25: Есть без спец. 19эт | AC25: Приблизительный объем
D26: Кабельная продукция | AC26: 64 | AD26: км
D27: Кабеленесущие системы (лотки, трубы) | AC27: 39000 | AD27: м
D28: Оборудование (шкафы, щиты) | AC28: 367 | AD28: компл
D29: Установочные изделия (светильники, выключатели, розетки) | AC29: 7274 | AD29: шт
A30: 36 | C30: СД00.03.1.03.4 | D30: ЖК "Светлая Долина" ПК-3 ж/д 3-4 | E30: 10,363 | F30: =(#REF!-#REF!)/30 ->  | G30: АБ-1 | H30: АБ-1 | I30: АБСт | K30: 2025-06-30 | O30: ● | R30: ● | V30: ● | X30: =SUM(L30:W30) -> 0 | Y30: =IF(YEAR(#REF!)=L$8,#REF!,0) ->  | Z30: =IF(AND(YEAR(#REF!)<=L$8,YEAR(#REF!)>L$8),#REF!,0) ->  | AA30: =#REF! ->  | AB30: Есть без спец. 17эт | AC30: Приблизительный объем
D31: Кабельная продукция | AC31: 39 | AD31: км
D32: Кабеленесущие системы (лотки, трубы) | AC32: 23000 | AD32: м
D33: Оборудование (шкафы, щиты) | AC33: 268 | AD33: компл
D34: Установочные изделия (светильники, выключатели, розетки) | AC34: 5500 | AD34: шт
A35: 40 | C35: СД00.03.0.00.0 | D35: ЖК "Светлая Долина" ПК-5 | E35: =E36 -> 16,357
A36: 41 | C36: СД00.05.3.05.1 | D36: ЖК "Светлая долина" ПК-5 паркинг 5-1 на 506 м/м | E36: 16,357 | F36: =(#REF!-#REF!)/30 ->  | G36: АБ-1 | H36: ООО "СтандартПроект" | I36: АБСт | K36: 2023-09-30 | W36: ▪ | X36: =SUM(L36:W36) -> 0 | Y36: =IF(YEAR(#REF!)=L$8,#REF!,0) ->  | Z36: =IF(AND(YEAR(#REF!)<=L$8,YEAR(#REF!)>L$8),#REF!,0) ->  | AA36: =#REF! ->  | AB36: Есть
D37: Кабельная продукция | AC37: =15.833+1.3 -> 17.133 | AD37: км
D38: Кабеленесущие системы (лотки, трубы) | AC38: =2500+100+96+100+100+100+96+2000 -> 5092 | AD38: м
D39: Оборудование (шкафы, щиты) | AC39: 19 | AD39: компл
D40: Установочные изделия (светильники, выключатели, розетки) | AC40: =2+516+6+12+106+37+16+56+32+32+2+60+32+13+8 -> 930 | AD40: шт
A41: 12 | C41: СД00.00.0.00.0 | D41: ЖК "Седьмое небо" Мой ритм М1 | E41: =SUM(,#REF!,#REF!,E42,#REF!,E57) -> 
A42: 30 | C42: СД00.03.0.00.0 | D42: "Седьмое небо" ПК-5 | E42: =SUM(E43:E53) -> 60,561 | K42: =MAX(K43:K53) -> 2025-06-30 | L42: =SUM(L43,L48,L53,#REF!) ->  | M42: =SUM(M43,M48,M53,#REF!) ->  | N42: =SUM(N43,N48,N53,#REF!) ->  | O42: =SUM(O43,O48,O53,#REF!) ->  | P42: =SUM(P43,P48,P53,#REF!) ->  | Q42: =SUM(Q43,Q48,Q53,#REF!) ->  | R42: =SUM(R43,R48,R53,#REF!) ->  | S42: =SUM(S43,S48,S53,#REF!) ->  | T42: =SUM(T43,T48,T53,#REF!) ->  | U42: =SUM(U43,U48,U53,#REF!) ->  | V42: =SUM(V43,V48,V53,#REF!) ->  | W42: =SUM(W43,W48,W53,#REF!) ->  | X42: =SUM(X43,X48,X53,#REF!) ->  | Y42: =SUM(Y43,Y48,Y53,#REF!) ->  | Z42: =SUM(Z43,Z48,Z53,#REF!) ->  | AA42: =SUM(AA43,AA48,AA53,#REF!) -> 
A43: 31 | C43: СД00.03.1.03.1 | D43: жилой дом №5-1, жилой дом №5-2 | E43: 30,509 | F43: =(#REF!-#REF!)/30 ->  | G43: АБ-1 | H43: АБ-1 | I43: Не определен | K43: 2025-06-30 | O43: ● | R43: ● | V43: ● | X43: =SUM(L43:W43) -> 0 | Y43: =IF(YEAR(#REF!)=L$8,#REF!,0) ->  | Z43: =IF(AND(YEAR(#REF!)<=L$8,YEAR(#REF!)>L$8),#REF!,0) ->  | AA43: =#REF! ->  | AB43: Есть
D44: Кабельная продукция | AC44: =12.4+33+8+83+6.6+6.3+8.5+2+1+3.5+0.5+2+0.8+0.9+0.6+0.35+9.6+1+0.4+12+33+8+83+6+6+2+8+1+2+0.6+4+2+0.9+0.9+0.6+3+1+1.5+1+0.5+2 -> 359.45 | AD44: км
D45: Кабеленесущие системы (лотки, трубы) | AC45: =1180+1750+55*3+550+9500+55*3+350+1180+1750+33*3+500+8500+33*2+300+300+300+1400 -> 28055 | AD45: м
D46: Оборудование (шкафы, щиты) | AC46: =15+103+216+3+21+4+108+256+2+64+256+2+4+1+6+7 -> 1068 | AD46: компл
D47: Установочные изделия (светильники, выключатели, розетки) | AC47: =5+216+1+1+10+585+93+78+6+540+80+2500+103+764+585+1197+6+7+7+3+20+32+238+4+4+41+18+64+10+585+93+78+6+540+80+1850+64+764+585+1197+6+5+256+1+1+7+7+3+20+11+79+2+14+9+22+133+24+18+1+55+1+9+37+2 -> 13783 | AD47: шт
A48: 149 | C48: АВ00.00.0.00.0 | D48: ЖК на Айвазовского | E48: =SUM(E49:E49) -> 15,026 | K48: =MAX(K49) -> 2025-06-30 | L48: =SUM(L49:L49) -> 0 | M48: 0 | N48: 0 | O48: 0 | P48: 0 | Q48: 0 | R48: 0 | S48: 0 | T48: 0 | U48: 0 | V48: 0 | W48: 0 | X48: 0
A49: 150 | C49: АВ00.01.0.00.0 | D49: ЖК на Айвазовского 1 очередь | E49: 15,026 | F49: =(#REF!-#REF!)/30 ->  | G49: Архитектурный дом Тухватуллиной | H49: Архитектурный дом Тухватуллиной | I49: АБСт | J49: 01.03.2024 31.12.2025 | K49: 2025-06-30 | R49: ▪ | T49: ▪ | Y49: =IF(YEAR(#REF!)=L$8,#REF!,0) ->  | Z49: =IF(AND(YEAR(#REF!)<=L$8,YEAR(#REF!)>L$8),#REF!,0) ->  | AA49: =#REF! ->  | AB49: Есть
D50: Кабельная продукция | AC50: =5.5+3+2+2+25+1+6+6.5+3.5+0.65+3 -> 58.15 | AD50: км
D51: Кабеленесущие системы (лотки, трубы) | AC51: =1000+600+400+800+100+30+1700+1400 -> 6030 | AD51: м
D52: Оборудование (шкафы, щиты) | AC52: =19+24+43 -> 86 | AD52: компл
D53: Установочные изделия (светильники, выключатели, розетки) | AC53: =280+4+1+2+4+12+50+50+1+2+15+1+35+50+1+6+3+30+70+70+10+4+75+230+180+43+43+5+2+70+50 -> 1399 | AD53: шт
A54: 261 | C54: ГЖФ0.00.0.00.0 | D54: Объекты ГЖФ | E54: =#REF! ->  | L54: =#REF! ->  | M54: =#REF! ->  | N54: =#REF! ->  | O54: =#REF! ->  | P54: =#REF! ->  | Q54: =#REF! ->  | R54: =#REF! ->  | S54: =#REF! ->  | T54: =#REF! ->  | U54: =#REF! ->  | V54: =#REF! ->  | W54: =#REF! ->  | X54: =#REF! ->  | Y54: =#REF! ->  | Z54: =#REF! ->  | AA54: =#REF! -> 
A55: 266 | C55: СК00.01.0.00.0 | D55: ЖК "Салават Купере" Квартал №1 | E55: =SUM(E56:E80) -> 0 | L55: =SUM(L56:L80) -> 0 | M55: 0 | N55: 0 | O55: 0 | P55: 0 | Q55: 0 | R55: 0 | S55: 0 | T55: 0 | U55: 0 | V55: 0 | W55: 0 | X55: 0 | AA55: 0
A56: 279 | C56: СК00.01.1.05.1 | D56: ЖК "Салават Купере" Квартал №1 ж/д 5-1 | F56: =(#REF!-#REF!)/30 ->  | G56: АБ-1 | H56: АБ-1 | I56: АБСт | K56: - | X56: =SUM(L56:W56) -> 0 | Y56: =IF(YEAR(#REF!)=L$8,#REF!,0) ->  | Z56: =IF(AND(YEAR(#REF!)<=L$8,YEAR(#REF!)>L$8),#REF!,0) ->  | AB56: Есть
D57: Кабельная продукция | AC57: 38.5 | AD57: км
D58: Кабеленесущие системы (лотки, трубы) | AC58: 18948 | AD58: м
D59: Оборудование (шкафы, щиты) | AC59: =107+5 -> 112 | AD59: компл
D60: Установочные изделия (светильники, выключатели, розетки) | AC60: 6125 | AD60: шт
A61: 279 | C61: СК00.01.1.05.2 | D61: ЖК "Салават Купере" Квартал №1 ж/д 5-2 | F61: =(#REF!-#REF!)/30 ->  | G61: АБ-1 | H61: АБ-1 | I61: АБСт | K61: - | X61: 0 | Y61: =IF(YEAR(#REF!)=L$8,#REF!,0) ->  | Z61: =IF(AND(YEAR(#REF!)<=L$8,YEAR(#REF!)>L$8),#REF!,0) ->  | AB61: Есть
D62: Кабельная продукция | AC62: 38.5 | AD62: км
D63: Кабеленесущие системы (лотки, трубы) | AC63: 18948 | AD63: м
D64: Оборудование (шкафы, щиты) | AC64: =107+5 -> 112 | AD64: компл
D65: Установочные изделия (светильники, выключатели, розетки) | AC65: 6125 | AD65: шт
A66: 267 | C66: СК00.01.1.03.1 | D66: ЖК "Салават Купере" Квартал №1 ж/д 3-1 | F66: =(#REF!-#REF!)/30 ->  | G66: АБ-1 | H66: АБ-1 | I66: АБСт | K66: - | X66: 0 | Y66: =IF(YEAR(#REF!)=L$8,#REF!,0) ->  | Z66: =IF(AND(YEAR(#REF!)<=L$8,YEAR(#REF!)>L$8),#REF!,0) ->  | AB66: Нет
D67: Кабельная продукция | AD67: км
D68: Кабеленесущие системы (лотки, трубы) | AD68: м
D69: Оборудование (шкафы, щиты) | AD69: компл
D70: Установочные изделия (светильники, выключатели, розетки) | AD70: шт
A71: 268 | C71: СК00.01.1.03.2 | D71: ЖК "Салават Купере" Квартал №1 ж/д 3-2 | F71: =(#REF!-#REF!)/30 ->  | G71: АБ-1 | H71: АБ-1 | I71: АБСт | K71: - | X71: 0 | Y71: =IF(YEAR(#REF!)=L$8,#REF!,0) ->  | Z71: =IF(AND(YEAR(#REF!)<=L$8,YEAR(#REF!)>L$8),#REF!,0) ->  | AB71: Нет
D72: Кабельная продукция | AD72: км
D73: Кабеленесущие системы (лотки, трубы) | AD73: м
D74: Оборудование (шкафы, щиты) | AD74: компл
D75: Установочные изделия (светильники, выключатели, розетки) | AD75: шт
A76: 269 | C76: СК00.01.1.03.3 | D76: ЖК "Салават Купере" Квартал №1 ж/д 3-3 | F76: =(#REF!-#REF!)/30 ->  | G76: АБ-1 | H76: АБ-1 | I76: АБСт | K76: - | X76: 0 | Y76: =IF(YEAR(#REF!)=L$8,#REF!,0) ->  | Z76: =IF(AND(YEAR(#REF!)<=L$8,YEAR(#REF!)>L$8),#REF!,0) ->  | AB76: Нет
D77: Кабельная продукция | AD77: км
D78: Кабеленесущие системы (лотки, трубы) | AD78: м
D79: Оборудование (шкафы, щиты) | AD79: компл
D80: Установочные изделия (светильники, выключатели, розетки) | AD80: шт
D81: максимальная загрузка завода панелями | L81: =5745.73301587302/0.786 -> 7310 | M81: =5745.73301587302/0.786 -> 7310 | N81: 7310 | O81: 7310 | P81: 7310 | Q81: 7310 | R81: 7310 | S81: 7310 | T81: 7310 | U81: 7310 | V81: 7310 | W81: 7310 | AE81: 7217 | AF81: 7217 | AG81: 7218 | AH81: 7218 | AI81: 7218 | AJ81: 7218 | AK81: 7218 | AL81: 7218 | AM81: 7218 | AN81: 7218 | AO81: 7218 | AP81: 7218
D82: Разница между итогопанели м3 и макс загрузкой завода панелями | L82: =L81-#REF! ->  | M82: =M81-#REF! ->  | N82: =N81-#REF! ->  | O82: =O81-#REF! ->  | P82: =P81-#REF! ->  | Q82: =Q81-#REF! ->  | R82: =R81-#REF! ->  | S82: =S81-#REF! ->  | T82: =T81-#REF! ->  | U82: =U81-#REF! ->  | V82: =V81-#REF! ->  | W82: =W81-#REF! ->  | X82: =X81-#REF! ->  | Y82: =Y81-#REF! ->  | Z82: =Z81-#REF! ->  | AA82: =AA81-#REF! ->  | AE82: =AE81-#REF! ->  | AF82: =AF81-#REF! ->  | AG82: =AG81-#REF! ->  | AH82: =AH81-#REF! ->  | AI82: =AI81-#REF! ->  | AJ82: =AJ81-#REF! ->  | AK82: =AK81-#REF! ->  | AL82: =AL81-#REF! ->  | AM82: =AM81-#REF! ->  | AN82: =AN81-#REF! ->  | AO82: =AO81-#REF! ->  | AP82: =AP81-#REF! -> 
B83: * Коммерческие здания: Адм здание 17-3 ПК-9 СГ, Торгово-офисное здание ПК-5 "Мой Ритм", Бизнес-центр ПК-1 "Мой Ритм", Бизнес-центр М-3 "Седьмое Небо", Технопарк М-4 "Седьмое Небо", Административное здание с МУПг ул.Рахматуллина, Здание по ул.Сыртлановой 2, Административно-офисное здание по ул.Шмидта 35Б
B85: Ввод квартир 2020-2028
B86: Итого АБД
B87: Итого ГЖФ
B88: Всего квартир АБД+ГЖФ | F88: =F86+F87 -> 0
